Cogmind - Beta 16.1 @@@ ROGUE MODE // 2026.03.19 @ 08:37:52 Player: ash Result: Destroyed by H-66 Slayer with Gauss Rifle Performance ------------- Evolutions (4) 2000 Regions Visited (7) 1400 Robots Destroyed (65) 325 Value Destroyed (1839) 1839 Prototype IDs (11) 220 Alien Tech Used (0) 0 Bonus (856) 856 TOTAL SCORE: 6640 Bonus ------- High Alert Combat Kills 56 Entered DSFs 500 Registered with UFD 300 Cogmind --------- Core Integrity 0/850 Matter 300/300 Energy 100/100 System Corruption 0% Temperature Cool (18) Movement Core (400) Ox7 Location -6/DSF Parts ------- > --- POWER (1) -------- (None) > --- PROPULSION (4) --- (None) > --- UTILITY (6) ------ Large Storage Unit > --- WEAPON (4) ------- Companion Sword > --- INVENTORY (15) --- Fission Core Titanium Leg Scrap Suit Compact Matter Pod (150) Enhanced Optical Array Actuator Array Light Armor Plating Medium Armor Plating Advanced Beam Cannon Mini Grenade Launcher Heavy Flail Heavy Flail Power Sword DRS Beacon (Ready) Peak State ------------ > --- POWER ------------ F-cell Engine > --- PROPULSION ------- Nuclear Pulse Thruster Nuclear Pulse Thruster > --- UTILITY ---------- Large Storage Unit Hardened Light Armor Plating > --- WEAPON ----------- Power Sword Companion Sword > --- INVENTORY -------- Fission Core Titanium Leg Scrap Suit Compact Matter Pod Enhanced Optical Array Actuator Array Light Armor Plating Medium Armor Plating Advanced Beam Cannon Mini Grenade Launcher Heavy Flail Heavy Flail Power Sword DRS Beacon [Rating: 35] Favorites ----------- Power F-cell Engine Engine F-cell Engine Power Core Light Nuclear Core Propulsion Aluminum Leg Treads Light Treads Leg Aluminum Leg Flight Unit Nuclear Pulse Thruster Utility Large Storage Unit Device Disposable Heat Sink Storage Large Storage Unit Processor Signal Interpreter Protection Light Armor Plating Weapon Pulse Rifle Energy Gun Pulse Rifle Energy Cannon Advanced Beam Cannon Ballistic Gun Assault Rifle Launcher Mini Grenade Launcher Special Weapon Mining Laser Impact Weapon Flail Slashing Weapon Companion Sword Build | -11 -10 -9 -9 -9 -9 -6 -6 ------- Run | Yrd Mat Mat Sto Rec Scr Fac DSF Slots Evolved 8 | . . 2 . . . 6 . Power . | . . . . . . . . Propulsion 2 | . . 2 . . . . . Utility 4 | . . . . . . 4 . Weapon 2 | . . . . . . 2 . Parts Attached 44 | . 8 14 11 1 5 . 5 Power 4 | . 1 2 1 . . . . Engine 3 | . 1 1 1 . . . . Core 1 | . . 1 . . . . . Reactor . | . . . . . . . . Propulsion 16 | . 2 7 4 . . . 3 Treads 1 | . . 1 . . . . . Leg 12 | . 2 6 4 . . . . Wheel . | . . . . . . . . Hover . | . . . . . . . . Flight 3 | . . . . . . . 3 Utility 8 | . 2 2 1 1 1 . 1 Device 2 | . 1 . . . . . 1 Storage 1 | . 1 . . . . . . Processor 2 | . . 2 . . . . . Hackware . | . . . . . . . . Protection 3 | . . . 1 1 1 . . Artifact . | . . . . . . . . Weapon 16 | . 3 3 5 . 4 . 1 Energy Gun 7 | . 2 2 2 . 1 . . Energy Cannon 2 | . . . 2 . . . . Ballistic Gun 1 | . . . 1 . . . . Ballistic Cannon . | . . . . . . . . Launcher 1 | . . 1 . . . . . Special Weapon 1 | . 1 . . . . . . Impact Weapon 1 | . . . . . 1 . . Slashing Weapon 3 | . . . . . 2 . 1 Piercing Weapon . | . . . . . . . . Special Melee Weapon . | . . . . . . . . Unidentified Prototypes 3 | . . . 2 . 1 . . Parts Lost 24 | . . 4 7 1 . . 12 Power 1 | . . . . . . . 1 Propulsion 13 | . . 2 4 . . . 7 Utility 3 | . . . . 1 . . 2 Weapon 7 | . . 2 3 . . . 2 Highest Loss Streak 12 | . . 1 5 1 . . 12 To Critical Strikes . | . . . . . . . . Average Backups 11 | . 7 9 12 11 13 12 13 Power 1 | . 1 1 1 1 1 1 1 Propulsion . | . 2 . 1 . . 1 1 Utility 4 | . . 2 3 6 7 7 6 Weapon 4 | . 3 5 6 4 4 3 4 Tool/Special . | . . . . . . . . Unused Backups 32 | . 11 3 1 . 7 1 9 Power 5 | . 1 2 . . 1 . 1 Propulsion 7 | . 6 . . . . . 1 Utility 11 | . 1 . . . 6 . 4 Weapon 9 | . 3 1 1 . . 1 3 Tool/Special . | . . . . . . . . Average Slot Usage (%) 95 | . 97 98 99 100 94 60 39 Engine 8 | . 13 . 7 11 11 6 5 Core 2 | . . 10 3 . . . . Leg 39 | . 27 38 43 44 44 26 8 Device 2 | . 13 1 3 . . . 1 Storage 11 | . 14 11 11 11 11 6 6 Processor 2 | . . 9 1 . . . . Protection 6 | . . . 4 11 11 6 3 Energy Gun 12 | . 11 12 18 22 6 . . Ballistic Gun 3 | . 14 7 1 . . . . Slashing Weapon 3 | . . . . . 7 13 13 Peak Build Rating 35 | . 10 15 22 22 28 27 35 Average Rating 18 | . 9 12 19 21 23 27 25 On Entrance 16 | 6 6 9 15 21 21 27 27 Avg Prop Armor Cover (%) 9 | . . 9 . . . . . Naked Turns . | . . . . . . . . Heaviest Build 46 | 11 31 31 46 45 43 43 44 Greatest Support 49 | 20 20 40 43 43 43 43 49 Greatest Overweight (x) 14 | . 1 1 1 1 . . 14 Average Overweight (x) . | . . . . . . . 3 Largest Inventory Capacity 15 | . 15 15 15 15 15 15 15 Average Capacity 14 | . 10 15 15 15 15 15 15 Most Carried 15 | . 8 12 15 14 15 15 15 Average Carried 12 | . 7 9 12 11 14 14 14 Final Capacity 15 | 8 15 15 15 15 15 15 15 Final Carried 15 | 6 8 11 8 14 15 15 15 Class Distribution -------------------- 50% | Scavenger-Mutant 49% | Mutant Dominant Class ---------------- Mutant | -10/Materials Mutant | -9/Materials Scavenger-Mutant | -9/Storage Scavenger-Mutant | -9/Recycling Scavenger-Mutant | -9/Scraptown Mutant | -6/Factory Mutant | -6/DSF Resources | -11 -10 -9 -9 -9 -9 -6 -6 ----------- Run | Yrd Mat Mat Sto Rec Scr Fac DSF Matter Collected 1091 | 200 98 473 200 62 43 . 15 Remotely . | . . . . . . . . Salvage Created 2365 | . 293 850 954 157 . . 111 Parts 143 | . 20 58 48 8 . . 9 Haulers Intercepted 5 | . . 2 3 . . . . Recyclers Shooed 2 | . . . . 2 . . . Parts Field Recycled . | . . . . . . . . Retrieved Matter . | . . . . . . . . Parts Self-Destructed . | . . . . . . . . Prevented . | . . . . . . . . Parts Restored . | . . . . . . . . Kills | -11 -10 -9 -9 -9 -9 -6 -6 ------- Run | Yrd Mat Mat Sto Rec Scr Fac DSF Combat Hostiles Destroyed 53 | . 6 22 20 3 . . 2 Melee 2 | . . . . . . . 2 Guns 40 | . 6 16 15 3 . . . AOE 10 | . . 6 4 . . . . Classes Destroyed 10 | . 2 5 1 1 . . 1 Worker 1 | . . . 1 . . . . Builder 3 | . 1 1 1 . . . . Hauler 5 | . . 2 3 . . . . Recycler 2 | . . 2 . . . . . Watcher 1 | . . 1 . . . . . Swarmer 14 | . . 11 3 . . . . Grunt 23 | . 6 7 10 . . . . Sentry 13 | . . 4 7 2 . . . Specialist 2 | . . . . . . . 2 Hunter 1 | . . . . 1 . . . Best Kill Streak 6 | . 3 6 6 1 . . 2 Combat Bots Only 5 | . 3 4 5 1 . . 2 Max Kills in Single Turn 3 | . 1 3 3 1 . . 1 Gunslinging 1 | . . . 1 . . . . Exploded 3 | . . 3 3 . . . . Melee 1 | . . . . . . . 1 Uniques/NPCs Destroyed . | . . . . . . . . Combat | -11 -10 -9 -9 -9 -9 -6 -6 -------- Run | Yrd Mat Mat Sto Rec Scr Fac DSF Hostile Shots Fired 358 | . 25 65 97 8 . . 163 Missed 107 | . 8 13 23 1 . . 62 Hits 251 | . 17 52 74 7 . . 101 Projectile 251 | . 17 52 74 7 . . 101 Critical Strikes 7 | . . 1 1 1 . . 4 Damage Taken 3852 | . 195 622 1111 102 . . 1822 Core 1189 | . 33 94 198 . . . 864 Absorbed by Shields . | . . . . . . . . Core Remaining (%) 71 | 100 86 . . . 27 . . Volleys Fired 136 | . 19 55 56 6 . . . Largest 2 | . 2 2 2 2 . . . Hottest 131 | . 100 100 131 126 . . . Shots Fired 261 | . 37 106 106 12 . . . Gun 242 | . 36 100 94 12 . . . Cannon 10 | . . . 10 . . . . Launcher 7 | . . 5 2 . . . . Special 2 | . 1 1 . . . . . Kinetic 65 | . 18 32 15 . . . . Thermal 108 | . 1 45 50 12 . . . Explosive 7 | . . 5 2 . . . . Electromagnetic 81 | . 18 24 39 . . . . Robot Hit Streak 47 | . 6 21 47 14 . . . Robot Miss Streak 3 | . 2 3 2 1 . . . Penetration Max . | . . . . . . . . Secondary Targets 1 | . . . 1 . . . . Max Gunslinging Chain 1 | . . . 1 . . . . Shots Hit Robots 198 | . 30 72 84 8 . . 4 Core Hits 111 | . 14 44 45 6 . . 2 Critical Kills 1 | . . . 1 . . . . Critical Parts Destroyed 1 | . 1 . . . . . . Critical Strikes 15 | . 1 8 5 1 . . . Burn 13 | . . 8 4 1 . . . Destroy 2 | . 1 . 1 . . . . Melee Attacks 5 | . . . . . . . 5 Impact . | . . . . . . . . Slashing 5 | . . . . . . . 5 Piercing . | . . . . . . . . Sneak Attacks . | . . . . . . . . Combat Hostiles . | . . . . . . . . Follow-up Attacks 1 | . . . . . . . 1 Damage Inflicted 4099 | . 400 1512 1823 219 . . 145 Guns 2737 | . 400 961 1233 143 . . . Cannons 146 | . . . 146 . . . . Explosions 969 | . . 551 418 . . . . Melee 145 | . . . . . . . 145 Ramming 102 | . . . 26 76 . . . Kinetic 568 | . 166 263 139 . . . . Thermal 1426 | . . 389 894 143 . . . Explosive 744 | . . 551 193 . . . . Electromagnetic 1114 | . 234 309 571 . . . . Impact . | . . . . . . . . Slashing 145 | . . . . . . . 145 Piercing . | . . . . . . . . Highest Corruption 1 | . . . . 1 . . . Average Corruption 1 | . . . . 1 . . . Corruption Purged . | . . . . . . . . Corruption Blocked . | . . . . . . . . Effects 1 | . . . . 1 . . . Matter Fused 1 | . . . . 1 . . . Overload Shots . | . . . . . . . . Overflow Damage 43 | . . 31 10 2 . . . Projectiles . | . . . . . . . . Explosions 41 | . . 31 10 . . . . Melee 2 | . . . . 2 . . . Knockbacks 1 | . . . . 1 . . . Impact 1 | . . . . 1 . . . Kinetic . | . . . . . . . . Secondary . | . . . . . . . . Self-Inflicted Damage 231 | . . 9 222 . . . . Shots 7 | . . 1 6 . . . . Rammed . | . . . . . . . . Targets Rammed 11 | . 1 1 3 6 . . . Kicked 11 | . 1 1 3 6 . . . Crushed . | . . . . . . . . Highest Temperature 300 | . 93 129 300 231 . . . Average Temperature 75 | . 32 35 110 95 . . . Received Heat Transfer 966 | . 111 195 453 45 . . 162 Effects 1 | . . . 1 . . . . Energy Bleed 1 | . . . 1 . . . . Siege Activations . | . . . . . . . . Martial Activations . | . . . . . . . . Shielding Activations . | . . . . . . . . Robots Disrupted . | . . . . . . . . Combat Hostiles . | . . . . . . . . Robots Corrupted . | . . . . . . . . Combat Hostiles . | . . . . . . . . Parts Fried 3 | . 1 1 1 . . . . Impact Corruptions 1 | . . . . 1 . . . Robots Melted 1 | . . . 1 . . . . Combat Hostiles 1 | . . . 1 . . . . Parts Melted 21 | . . 13 8 . . . . Heat Transferred 4198 | . . 1739 2052 407 . . . Parts Sabotaged . | . . . . . . . . Parts Stolen . | . . . . . . . . Parts Stripped . | . . . . . . . . Power Chain Reactions 5 | . . . 5 . . . . Alert | -11 -10 -9 -9 -9 -9 -6 -6 ------- Run | Yrd Mat Mat Sto Rec Scr Fac DSF Maximum Alert Level 2 | . . 1 2 1 . . . Low Security (%) 73 | . 100 75 14 97 . 100 100 Level 1 18 | . . 24 46 2 . . . Level 2 8 | . . . 38 . . . . Level 3 . | . . . . . . . . Level 4 . | . . . . . . . . Level 5 . | . . . . . . . . High Security . | . . . . . . . . Max Security . | . . . . . . . . Peak Influence 501 | . 70 311 501 207 . . 50 Initial 179 | . . 8 131 179 . . . Average 157 | . 26 138 336 159 . . 12 Influence Increases 1955 | . 226 725 702 252 . . 50 Destroy 0b10 Robot/C 1060 | . 120 440 400 60 . . 40 Destroy 0b10 Robot/NC 60 | . 5 30 25 . . . . Destroy Leader 282 | . 40 116 116 . . . 10 Successful Hack 102 | . 29 15 16 42 . . . Select Force Hacks 210 | . 30 30 . 150 . . . Disable Machine 75 | . . 45 30 . . . . Destroy Structure 91 | . 2 34 55 . . . . Partial Spotted 15 | . . . 15 . . . . Lose Combat Pursuer 60 | . . 15 45 . . . . Influence Decreases 1955 | . 205 435 552 602 111 . 50 Entered New Map 586 | . . 13 180 282 111 . . Time Decay 1199 | . 205 382 302 310 . . . Lost Part 170 | . . 40 70 10 . . 50 Squads Dispatched 10 | . 4 3 2 . . . 1 Investigation 5 | . 2 2 1 . . . . Extermination . | . . . . . . . . Reinforcement 5 | . 2 1 1 . . . 1 Assault . | . . . . . . . . Garrison . | . . . . . . . . Intercept . | . . . . . . . . Searches Triggered . | . . . . . . . . Construction Impeded . | . . . . . . . . Haulers Reinforced . | . . . . . . . . Active Scanning Responses . | . . . . . . . . Cargo Convoy Interrupts . | . . . . . . . . Stealth | -11 -10 -9 -9 -9 -9 -6 -6 --------- Run | Yrd Mat Mat Sto Rec Scr Fac DSF Distress Signals 6 | . 3 2 1 . . . . Communications Jammed . | . . . . . . . . Distress Signals . | . . . . . . . . Times Spotted 82 | . 14 31 28 3 . . 6 Peak Tracking Total 5 | . 5 5 5 1 . . 4 Tactical Retreats 4 | . . 1 3 . . . . Traps | -11 -10 -9 -9 -9 -9 -6 -6 ------- Run | Yrd Mat Mat Sto Rec Scr Fac DSF Traps Triggered 5 | . 3 1 . . . . 1 Indirectly . | . . . . . . . . Trap Hack Attempts . | . . . . . . . . Triggered . | . . . . . . . . Disarmed . | . . . . . . . . Reprogrammed . | . . . . . . . . Reused . | . . . . . . . . Traps Extracted . | . . . . . . . . Installed . | . . . . . . . . Triggered . | . . . . . . . . Machines | -11 -10 -9 -9 -9 -9 -6 -6 ---------- Run | Yrd Mat Mat Sto Rec Scr Fac DSF Machines Disabled 5 | . . 3 2 . . . . Max in Single Turn 1 | . . 1 1 . . . . Machines Repaired . | . . . . . . . . Machines Dismantled . | . . . . . . . . Machines Sabotaged . | . . . . . . . . Overloaded Fab Kills . | . . . . . . . . Hacking | -11 -10 -9 -9 -9 -9 -6 -6 --------- Run | Yrd Mat Mat Sto Rec Scr Fac DSF Machines Accessed 36 | . 6 9 7 11 1 2 . Terminals 24 | . 5 6 6 6 . 1 . Fabricators 1 | . . . . . . 1 . Repair Stations . | . . . . . . . . Recycling Units 8 | . 1 1 1 5 . . . Scanalyzers 2 | . . 2 . . . . . Garrison Access . | . . . . . . . . Total Hacks 94 | . 17 21 15 35 1 5 . Successful 50 | . 10 14 4 19 1 2 . Failed 44 | . 7 7 11 16 . 3 . Catastrophic 18 | . 5 4 5 3 . 1 . Database Lockouts . | . . . . . . . . Manual 44 | . 12 9 1 22 . . . Terminals 72 | . 16 12 13 28 . 3 . Fabricators 2 | . . . . . . 2 . Repair Stations . | . . . . . . . . Recycling Units 11 | . 1 1 2 7 . . . Scanalyzers 8 | . . 8 . . . . . Garrison Access . | . . . . . . . . Terminal Hacks 24 | . 5 4 4 9 1 1 . Prototype ID Bank 4 | . . 2 . 2 . . . Open Door 5 | . . . 4 . 1 . . Open DSF 1 | . . . . . . 1 . Branch Access Points 3 | . 1 1 . 1 . . . Machine Index 1 | . 1 . . . . . . Terminal Index 1 | . . . . 1 . . . Recycling Unit Index 1 | . . . . 1 . . . Locate Traps 2 | . 2 . . . . . . Dispatch Records 1 | . . . . 1 . . . Hauler Manifests 1 | . . . . 1 . . . Registered Components 1 | . 1 . . . . . . Zone Layout 3 | . . 1 . 2 . . . Fabricator Hacks 1 | . . . . . . 1 . Network Status 1 | . . . . . . 1 . Repair Station Hacks . | . . . . . . . . Recycling Unit Hacks 1 | . . . . 1 . . . Report Inventory 1 | . . . . 1 . . . Scanalyzer 6 | . . 6 . . . . . Retrieve Study 6 | . . 6 . . . . . Garrison Access Hacks . | . . . . . . . . Unauthorized Hacks 18 | . 5 4 . 9 . . . Terminals 11 | . 4 3 . 4 . . . Botnet 11 | . 4 3 . 4 . . . Fabricators . | . . . . . . . . Repair Stations . | . . . . . . . . Recycling Units 7 | . 1 1 . 5 . . . Tunnel 7 | . 1 1 . 5 . . . Scanalyzers . | . . . . . . . . Garrison Access . | . . . . . . . . Data Cores Recovered . | . . . . . . . . Used . | . . . . . . . . Hacking Detections 22 | . 4 5 5 6 . 2 . Full Trace Events 8 | . . . 4 4 . . . Feedback Events 1 | . . . . 1 . . . Corruption 1 | . . . . 1 . . . Feedback Blocked . | . . . . . . . . Robot Schematics Acquired . | . . . . . . . . Robots Built . | . . . . . . . . Authchips . | . . . . . . . . Time . | . . . . . . . . Total Robot Build Rating . | . . . . . . . . Part Schematics Acquired . | . . . . . . . . Parts Built . | . . . . . . . . Authchips . | . . . . . . . . Time . | . . . . . . . . Total Part Build Rating . | . . . . . . . . Part Studies Acquired 5 | . . 5 . . . . . Parts Repaired . | . . . . . . . . Time . | . . . . . . . . Parts Recycled . | . . . . . . . . Recycled Matter . | . . . . . . . . Retrieved Matter . | . . . . . . . . Retrieved Components . | . . . . . . . . Parts Scanalyzed . | . . . . . . . . Part Schematics Acquired . | . . . . . . . . Parts Damaged . | . . . . . . . . Bothacking | -11 -10 -9 -9 -9 -9 -6 -6 ------------ Run | Yrd Mat Mat Sto Rec Scr Fac DSF Used RIF Installer . | . . . . . . . . Robots Hacked . | . . . . . . . . Non-combat . | . . . . . . . . Combat . | . . . . . . . . Robot Hacks Applied . | . . . . . . . . Relay Couplers Released . | . . . . . . . . Fabnet Peak Effective % . | . . . . . . . . Robots Rewired . | . . . . . . . . Allies Hacked . | . . . . . . . . Hacks Repelled . | . . . . . . . . Allies | -11 -10 -9 -9 -9 -9 -6 -6 -------- Run | Yrd Mat Mat Sto Rec Scr Fac DSF Total Allies . | . . . . . . . . Largest Group . | . . . . . . . . Highest-Rated Group . | . . . . . . . . Highest-Rated Ally . | . . . . . . . . Initial UFD Resources 24 | . . . . . . 24 24 Total Orders . | . . . . . . . . Ally Attacks . | . . . . . . . . Total Damage . | . . . . . . . . Kills . | . . . . . . . . Allies Corrupted . | . . . . . . . . Allies Melted . | . . . . . . . . Intel | -11 -10 -9 -9 -9 -9 -6 -6 ------- Run | Yrd Mat Mat Sto Rec Scr Fac DSF Active Infowar (turns) 449 | . . 449 . . . . . T.N.C. 449 | . . 449 . . . . . Robot Analysis Total . | . . . . . . . . Derelict Logs Recovered . | . . . . . . . . Drone Launches . | . . . . . . . . Drone Recoveries . | . . . . . . . . Exploration | -11 -10 -9 -9 -9 -9 -6 -6 ------------- Run | Yrd Mat Mat Sto Rec Scr Fac DSF Turns Passed 4647 | . 546 975 665 689 1567 87 118 Spaces Moved 3407 | 1 314 646 313 588 1430 78 37 Core 8 | . . . . . . . 8 Treads . | . . . . . . . . Legs 3394 | 1 314 646 313 588 1430 78 24 Wheels . | . . . . . . . . Hover . | . . . . . . . . Flight 5 | . . . . . . . 5 Fastest Speed 105 | 120 120 105 105 108 108 108 108 Average Speed 114 | 120 138 109 124 111 108 108 268 Slowest Speed 750 | 120 190 190 178 178 108 108 750 Overloaded Moves . | . . . . . . . . Propulsion Burnouts . | . . . . . . . . Robots Hopped . | . . . . . . . . Potential Cave-ins . | . . . . . . . . Cave-ins Triggered . | . . . . . . . . Exploration Rate (%) 49 | 2 46 63 56 97 90 3 42 Regions Visited 7 Branch Regions 3 Pre-discovered Areas 7 | . 1 1 . 5 . . . Known Exits Taken 2 | . . 1 . . . 1 . Unknown Exits Taken 5 | 1 1 . 1 1 1 . . Scrap Searched 3 | . . . . . 3 . . Spaces Dug 1 | . 1 . . . . . . Terrain Destroyed 81 | . 1 32 48 . . . . Melee . | . . . . . . . . Projectile 1 | . 1 . . . . . . AOE 80 | . . 32 48 . . . . Terrain Rammed . | . . . . . . . . Walls Destroyed . | . . . . . . . . Machines Disabled . | . . . . . . . . Actions | -11 -10 -9 -9 -9 -9 -6 -6 --------- Run | Yrd Mat Mat Sto Rec Scr Fac DSF Total 3872 | . 388 806 484 609 1457 81 47 Wait 172 | . 26 67 77 2 . . . Move 3400 | . 313 645 312 587 1429 77 37 Hop . | . . . . . . . . Pick Up 45 | . 8 8 9 7 10 2 1 Fast Attach 18 | . 6 6 1 . 1 . 4 Attach 17 | . . 5 9 1 1 . 1 Detach 9 | . . 5 2 . 2 . . Swap 25 | . 5 8 9 . 3 . . Drop 35 | . 10 6 6 . 11 2 . Fire 136 | . 19 55 56 6 . . . Melee 4 | . . . . . . . 4 Ram . | . . . . . . . . Kick 11 | . 1 1 3 6 . . . Crush . | . . . . . . . . Escape Stasis . | . . . . . . . . Rewire . | . . . . . . . . Trap . | . . . . . . . . Miscellaneous . | . . . . . . . . Route ------- -11/Scrapyard -10/Materials (discovered 2 exits: *Mat / *Min) -9/Materials (discovered 5 exits: *Mat x3 / *Min / *Sto) -9/Storage -9/Recycling (discovered 2 exits: [*Fac] / *Scr) -9/Scraptown (discovered 2 exits: *Fac x2) -6/Factory -6/DSF (discovered 1 exit: [*Fac]) History --------- Turn | Location | Event 1 | -11/Scrapyard | Discovered new exit (range 0) 1 | -11/Scrapyard | Entered Materials 47 | -10/Materials | Identified exit to Mines 273 | -10/Materials | Discovered new exit (range 15) 300 | -10/Materials | Build established: Mutant 547 | -10/Materials | Entered another Materials area 547 | -9/Materials | Evolved 2 slots: Propulsion x2 1089 | -9/Materials | Discovered new exit (range 9) 1146 | -9/Materials | Discovered new exit (range 12) 1163 | -9/Materials | Identified exit to Materials 1239 | -9/Materials | Identified exit to Mines 1239 | -9/Materials | Identified exit to Storage 1343 | -9/Materials | Discovered exit to Materials (range 11) 1456 | -9/Materials | Discovered exit to Materials (range 14) 1522 | -9/Materials | Entered Storage 1684 | -9/Storage | Build established: Scavenger-Mutant 1955 | -9/Storage | Core integrity fell below 50% 1996 | -9/Storage | Lost 5 parts (3n2w) 2180 | -9/Storage | Used back door to open Recycling access 2180 | -9/Storage | Discovered new exit (range 5) 2187 | -9/Storage | Entered Recycling 2431 | -9/Recycling | Discovered new exit (range 16) 2850 | -9/Recycling | Scanned before Scraplab entrance 2865 | -9/Recycling | Entered Scraplab 2874 | -9/Recycling | Discovered new exit (range 3) 2876 | -9/Recycling | Entered Scraptown 2876 | -9/Scraptown | System corruption cleaned by C-Scrubber 3076 | -9/Scraptown | Visited UFD Registry 3076 | -9/Scraptown | Registered with UFD as "Ionsys" 3149 | -9/Scraptown | Visited Cartography Club 3182 | -9/Scraptown | Visited Chapter 10 3201 | -9/Scraptown | Visited Supply Room 3240 | -9/Scraptown | Discovered new exit (range 5) 3335 | -9/Scraptown | Visited Sword Containment 3347 | -9/Scraptown | Found Prototype Slashing Weapon 3360 | -9/Scraptown | Identified Companion Sword 3371 | -9/Scraptown | Visited Derelict Rescue Squad 3379 | -9/Scraptown | Found DRS Beacon 3406 | -9/Scraptown | Visited Scrap Suit Storage 3423 | -9/Scraptown | Visited Junk Repository 3579 | -9/Scraptown | Visited Science Testing Area 3596 | -9/Scraptown | Visited Botcube Research 3824 | -9/Scraptown | Visited The Evicted 3836 | -9/Scraptown | Visited Spacefarers 3868 | -9/Scraptown | Visited Cyclists 3878 | -9/Scraptown | Entered Cyclist Reading Room 3934 | -9/Scraptown | Discovered new exit (range 11) 4065 | -9/Scraptown | Build established: Mutant 4135 | -9/Scraptown | Visited Shadow of the Wyrm 4148 | -9/Scraptown | Visited Cave Peace 4206 | -9/Scraptown | Visited TADAMA 4238 | -9/Scraptown | Visited Red Mages 4423 | -9/Scraptown | Found Scrap Suit 4443 | -9/Scraptown | Entered Factory 4443 | -6/Factory | Evolved 6 slots: Utility x4, Weapon x2 4529 | -6/Factory | Identified exit to DSF 4530 | -6/Factory | Entered DSF 4561 | -6/DSF | Additional patrols routed to DSF 4601 | -6/DSF | Discovered new exit (range 12) 4625 | -6/DSF | Core integrity fell below 50% 4645 | -6/DSF | Core integrity fell below 20% 4648 | -6/DSF | Destroyed by H-66 Slayer with Gauss Rifle Last Messages --------------- 04608_ Nuclear Pulse Thruster destroyed. 04613_ Slug penetrates Wall. 04613_ Knocked back. 04624_ Triggered Alarm Trap. 04624_ An alarm sounds. 04624_ F-cell Engine destroyed. 04627_ A-15 Conveyor exits level. 04628_ Slug penetrates Wall. 04628_ Knocked back. 04636_ Penetrated by Slug. 04636_ Matter Repository disabled. Companion Sword: "Let's make a deal: I hit them and you keep them from hitting me." 04642_ Power Sword destroyed. 04642_ Critical hit (Blast). 04642_ Knocked back. 04645_ C-30 ARC bursts open, deploying its payload. 04645_ H-66 Slayer unfolds itself. 04645_ Slug penetrates Matter Repository. 04645_ Penetrated by Slug. Map ----- +----------------------------------------------------+ | ????????????????????????????????????? | | ????????????????????????????????????? | | ????????????????????????????????????? | | ????????????????????????????????????? | | ????????????????????????????????????? | | ????????????????????????????????????? | | ????????????????????????????????????? | | ????????????????????????????????????? | | ????????????????????????????????????? | | ????????????????????????????????????? | | ????????????????????????? ????????? | | ?????????? ???????????? ????????? | | ????????? ??????????? !????????? | | ?????????# #??????????? !????????? | | ???????### ##?????????# ##???????? | | ???????#!! ?????????& ????????? | | ???????#!! ??????????& ????????? | | ???????#!! ??????????& ????????? | | #??????##" ###????????# ##???????? | | ???????# #????????& #???????? | | ???????# #????????& #???????? | | ######## ########?# #????????? | | #!!#!!!#?# ;##&&&#&&### ###??????? | | #!!#!!!### !;;&&&#&&## ""####???? | | [*H%= % % %h"""""#???? | | %%%!Y! @